bitfinex-derivatives/quotes_ETHF0:USTF0_20240907
["timestamp","ask_amount","ask_price","bid_price","bid_amount"]
[1725681384467,7.32034906,2239.0,2238.8,1.22317]
[1725681385067,0.44675,2238.9,2238.8,1.22317]
[1725681385265,0.44675,2238.9,2238.8,0.7764]
[1725681386876,0.44675,2238.9,2238.8,1.22317]
[1725681387780,0.44675,2238.9,2238.8,0.7764]
[1725681388173,0.44675,2238.9,2238.7,0.81739]
[1725681388476,1.29,2238.8,2238.7,0.81739]
[1725681396381,1.73677,2238.8,2238.7,0.81739]
[1725681396599,1.73677,2238.8,2238.7,0.3706]
[1725681396840,1.73677,2238.8,2238.7,0.81739]
[1725681397383,1.73677,2238.8,2238.7,0.3706]
[1725681397774,10.919549,2238.8,2238.3,3.2078]
[1725681397980,1.29,2238.5,2238.4,1.18755]
[1725681400887,1.29,2238.5,2238.4,1.57735]
[1725681403561,6.04528943,2238.5,2238.4,1.1305]
[1725681403697,6.04528943,2238.5,2238.4,0.83665]
[1725681403988,1.29,2238.5,2238.4,0.83665]
[1725681404190,1.29,2238.5,2238.4,2.00561549]
[1725681410592,1.83440186,2238.7,2238.5,0.44683]
[1725681410799,1.29,2238.6,2238.4,1.55876549]
[1725681410988,6.83779458,2238.6,2238.4,2.00560549]
[1725681411896,6.39098458,2238.6,2238.4,2.00560549]
[1725681414293,6.39098458,2238.6,2238.4,0.83664]
[1725681414603,6.83779458,2238.6,2238.4,0.83664]
[1725681415300,6.39098458,2238.6,2238.4,0.83664]
[1725681417398,6.83780458,2238.6,2238.4,0.83664]
[1725681417599,6.39098458,2238.6,2238.4,0.83664]
[1725681417895,6.83780458,2238.6,2238.4,0.83664]
[1725681421193,6.83781458,2238.6,2238.4,0.83665]
[1725681422303,6.39098458,2238.6,2238.5,0.44683]
[1725681422792,1.29,2238.6,2238.5,1.61579549]
[1725681423190,1.29,2238.6,2238.5,1.16896549]
[1725681423587,1.73681,2238.6,2238.5,1.16896549]
[1725681423793,1.29,2238.6,2238.5,1.61579549]
[1725681424818,1.29,2238.6,2238.5,1.16896549]
[1725681425497,1.6508,2238.6,2238.5,1.16896549]
[1725681425799,2.09761,2238.6,2238.5,1.16896549]
[1725681426193,1.6508,2238.6,2238.5,1.61579549]
[1725681427398,2.09761,2238.6,2238.5,1.16896549]
[1725681427609,2.09761,2238.6,2238.5,1.61579549]
[1725681427801,1.6508,2238.6,2238.5,1.61579549]
[1725681428108,2.47741,2238.6,2238.5,1.16896549]
[1725681428323,2.0306,2238.6,2238.5,1.61579549]
[1725681428503,0.81353,2239.1,2238.8,0.44677]
[1725681428826,1.29,2239.0,2238.9,3.5776]
[1725681429009,0.752,2239.1,2239.0,0.44673]
[1725681429205,1.29,2239.2,2239.1,0.44671]
[1725681429405,1.1595,2239.5,2239.3,0.44666]
[1725681429704,1.29,2239.5,2239.4,0.3707]
[1725681429900,1.29,2239.5,2239.4,2.36245008]
[1725681430104,1.29,2239.5,2239.4,6.82805008]
[1725681430605,1.29,2239.5,2239.4,5.65835]
[1725681430807,1.29,2239.5,2239.4,1.19275]
[1725681440411,1.29,2239.5,2239.4,0.44665]
[1725681442907,1.14875963,2240.0,2239.9,0.44656]
[1725681443122,0.3612,2240.2,2239.8,3.2078]
[1725681443315,1.29,2240.2,2240.1,0.44652]
[1725681443812,0.44653,2240.1,2239.9,0.7576]
[1725681444011,1.73654,2240.0,2239.9,0.389]
[1725681444211,1.29,2240.0,2239.9,0.83556]
[1725681444733,1.73654,2240.0,2239.9,0.389]
[1725681446109,1.29,2240.0,2239.9,0.83556]
[1725681447007,1.73654,2240.0,2239.9,0.83556]
[1725681447630,0.44654,2240.0,2239.9,0.83556]
[1725681447812,1.1653,2240.1,2239.8,3.65436]
[1725681448112,1.73654,2240.0,2239.8,3.65436]
[1725681448817,1.73654,2240.0,2239.9,0.44656]
[1725681449418,1.73654,2240.0,2239.8,3.65437]
[1725681450015,0.44656,2239.9,2239.8,3.2078]
[1725681450214,0.44661,2239.7,2239.5,0.44662]
[1725681450408,2.3978,2239.6,2239.5,0.44662]
[1725681460722,1.1078,2239.6,2239.5,0.44662]
[1725681465019,0.7397,2239.6,2239.5,0.44662]
[1725681465218,1.29,2239.8,2239.5,0.44662]
[1725681465219,1.29,2239.9,2239.8,0.44658]
[1725681465919,1.29,2240.2,2240.1,0.44652]
[1725681469020,0.3836,2240.3,2240.2,0.4465]
[1725681469221,1.6736,2240.3,2240.2,0.4465]
[1725681471224,2.12009,2240.3,2240.1,0.44651]
[1725681472219,9.31280844,2240.2,2239.7,3.2078]
[1725681472423,1.73658,2239.8,2239.5,0.3856]
[1725681472625,1.1423,2239.7,2239.5,0.83223]
[1725681473118,1.1423,2239.7,2239.5,0.3856]
[1725681473331,1.1423,2239.7,2239.5,0.83223]
[1725681474416,1.1423,2239.7,2239.5,0.3856]
[1725681476216,1.29,2240.0,2239.5,0.3856]
[1725681476421,1.29,2240.0,2239.7,0.44659]
[1725681476702,1.29,2240.0,2239.8,0.7299]
[1725681477021,1.1452,2240.1,2239.9,0.3787]
[1725681477226,2.4352,2240.1,2239.9,0.3787]
[1725681477529,2.0412,2240.1,2239.9,0.3787]
[1725681479114,1.29,2240.0,2239.9,0.3787]
[1725681479521,2.0412,2240.1,2239.9,0.3787]
[1725681479926,1.29,2240.1,2239.9,0.3787]
[1725681480619,1.29,2240.1,2239.9,0.82525]
[1725681482523,1.73654,2240.0,2239.7,4.37750008]
[1725681482725,7.39362403,2240.0,2239.7,3.2078]
[1725681482925,2.4325,2240.0,2239.8,0.44657]
[1725681483316,4.96112403,2239.9,2239.7,3.2078]
[1725681483628,2.4325,2240.0,2239.8,0.44658]
[1725681483924,2.4325,2240.0,2239.7,3.65438]
[1725681484126,2.87904,2240.0,2239.7,3.2078]
[1725681484923,2.87904,2240.0,2239.7,3.65439]
[1725681487625,2.87904,2240.0,2239.8,1.20297]
[1725681487626,2.0344,2240.0,2239.8,1.20297]
[1725681487823,2.48094,2240.0,2239.8,0.7564]
[1725681488030,2.0344,2240.0,2239.8,1.20297]
[1725681488735,2.48094,2240.0,2239.8,0.7564]
[1725681491729,2.48094,2240.0,2239.7,1.16970008]
[1725681495732,0.44656,2239.9,2239.7,1.16970008]
[1725681495935,2.48095,2240.0,2239.7,1.16970008]
[1725681496543,2.0344,2240.0,2239.7,1.16970008]
[1725681496928,2.48095,2240.0,2239.7,1.16970008]
[1725681500336,0.44656,2239.9,2239.7,1.16970008]
[1725681503537,2.85303,2239.8,2239.7,1.16970008]
[1725681503733,2.85303,2239.8,2239.4,1.16970008]
[1725681503734,1.11649,2239.7,2239.4,1.16970008]
[1725681503932,0.80982,2239.6,2239.4,1.16970008]
[1725681504133,5.92203667,2239.6,2239.3,1.92740008]
[1725681505046,5.92203667,2239.6,2239.3,0.7577]
[1725681506838,5.47541667,2239.6,2239.3,1.20437]
[1725681508641,5.92203667,2239.6,2239.3,0.7577]
[1725681509737,0.44665,2239.4,2239.3,0.3724]
[1725681509942,1.73665,2239.4,2239.3,0.3724]
[1725681510241,1.29,2239.4,2239.3,0.3724]
[1725681510941,1.73667,2239.4,2239.2,0.3864]
[1725681511251,0.3863,2239.3,2239.2,0.3864]
[1725681512057,0.83297,2239.3,2239.2,1.16970008]
[1725681512296,0.44669,2239.2,2239.1,1.53490008]
[1725681512441,0.82849,2239.2,2239.1,1.53490008]
[1725681512738,0.3818,2239.2,2239.1,0.3652]
[1725681514342,0.82849,2239.2,2239.1,0.3652]
[1725681517849,0.3818,2239.2,2239.1,0.3652]
[1725681518943,0.82849,2239.2,2239.1,0.3652]
[1725681522296,0.82849,2239.2,2239.0,3.2078]
[1725681522297,0.44671,2239.1,2239.0,3.2078]
[1725681522640,1.73671,2239.1,2239.0,3.2078]
[1725681524044,0.44673,2239.0,2238.9,0.4001]
[1725681524252,0.82543,2239.0,2238.9,0.4001]
[1725681526354,3.51408841,2239.5,2238.9,0.4001]
[1725681526552,1.29,2239.5,2239.2,0.44669]
[1725681526756,1.29,2239.5,2239.3,0.3988]
[1725681526959,1.73663,2239.5,2239.4,0.7532]
[1725681527454,1.29,2239.5,2239.4,0.7532]
[1725681530354,1.73663,2239.5,2239.4,0.3623]
[1725681530563,1.29,2239.5,2239.4,0.3623]
[1725681531253,1.73663,2239.5,2239.4,0.3623]
[1725681531660,1.73663,2239.5,2239.3,0.3988]
[1725681531873,0.44665,2239.4,2239.3,0.3988]
[1725681532104,6.44812797,2239.4,2239.3,0.3988]
[1725681535761,7.11813797,2239.4,2239.0,4.37750008]
[1725681535954,0.44671,2239.2,2239.0,0.3995]
[1725681536849,0.44671,2239.1,2239.0,0.3995]
[1725681537760,6.77310135,2239.2,2239.0,0.3995]
[1725681539064,6.32639135,2239.2,2239.0,0.3995]
[1725681540152,6.77310135,2239.2,2239.0,0.3995]
[1725681540352,0.44671,2239.1,2239.0,0.3995]
[1725681541063,6.77310135,2239.2,2239.0,0.3995]
[1725681542055,0.44671,2239.1,2239.0,0.3995]
[1725681542460,5.48309135,2239.2,2239.0,0.3995]
[1725681542755,1.42659967,2239.6,2239.0,0.3995]
[1725681542756,0.44664,2239.5,2239.2,0.44668]
[1725681543056,5.86997071,2239.5,2239.3,0.7656]
[1725681543262,5.86997071,2239.5,2239.3,1.1476]
[1725681544172,5.42333071,2239.5,2239.3,1.59427]
[1725681544362,0.3684,2239.5,2239.3,1.59427]
[1725681550267,0.3684,2239.5,2239.3,2.76397008]
[1725681550469,0.81504,2239.5,2239.3,2.76397008]
[1725681550671,1.29,2239.4,2239.3,2.31730008]
[1725681552371,1.29,2239.4,2239.3,2.76397008]
[1725681553774,1.29,2239.4,2239.3,2.31730008]
[1725681557672,1.29,2239.4,2239.3,1.1476]
[1725681558076,1.73665,2239.4,2239.3,1.1476]
[1725681558271,1.73665,2239.4,2239.3,0.382]
[1725681562776,1.29,2239.4,2239.3,0.82867]
[1725681562978,0.44669,2239.2,2239.1,1.16970008]
[1725681563176,0.7829,2239.3,2238.9,0.3833]
[1725681563388,1.11679,2239.1,2238.8,1.16970008]
[1725681563568,0.44677,2238.8,2238.7,0.7251]
[1725681563876,4.70361514,2239.0,2238.7,8.3993]
[1725681564072,2.1017,2239.2,2238.7,5.10260008]
[1725681564272,2.1017,2239.2,2238.8,1.61646008]
[1725681564584,2.1017,2239.2,2238.9,0.3773]
[1725681565104,2.1017,2239.2,2239.0,0.3619]
[1725681565474,2.1017,2239.2,2239.0,1.53160008]
[1725681565676,1.655,2239.2,2239.0,1.53160008]
[1725681566479,2.1017,2239.2,2239.0,1.53160008]
[1725681566878,1.655,2239.2,2239.0,1.53160008]
[1725681568179,2.1017,2239.2,2239.0,1.53160008]
[1725681568380,2.1017,2239.2,2239.0,0.3619]
[1725681568880,2.1017,2239.2,2239.0,1.53160008]
[1725681571069,0.44668,2239.3,2239.0,1.97833008]
[1725681571378,3.2078,2239.7,2239.6,0.44661]
[1725681571581,3.2078,2239.7,2239.6,1.61635738]
[1725681571770,3.2078,2239.7,2239.6,8.31554819]
[1725681571974,3.2078,2239.7,2239.6,10.45676926]
[1725681572281,3.2078,2239.7,2239.6,8.70175342]
[1725681572481,3.2078,2239.7,2239.6,5.29801]
[1725681573876,3.2078,2239.7,2239.6,0.83321]
[1725681574268,0.81736,2239.9,2239.6,0.83321]
[1725681574547,3.2078,2239.8,2239.6,0.83321]
[1725681577280,3.65438,2239.8,2239.6,0.3866]
[1725681577874,0.44658,2239.8,2239.6,0.3866]
[1725681580680,0.44661,2239.6,2239.5,4.37715261]
[1725681580884,0.44661,2239.6,2239.4,0.3877]
[1725681581290,0.83761,2239.6,2239.4,0.3877]
[1725681581583,0.44663,2239.5,2239.4,0.3877]
[1725681582076,0.44663,2239.5,2239.4,0.7684]
[1725681590690,0.44663,2239.5,2239.4,0.3807]
[1725681599389,0.7703,2239.6,2239.5,0.44663]
[1725681599782,0.391,2239.6,2239.5,0.44663]
[1725681600988,1.73659,2239.8,2239.5,0.44663]
[1725681601182,0.381,2239.8,2239.6,1.20711]
[1725681601400,4.35655963,2240.1,2239.6,3.9683]
[1725681601587,0.84396181,2240.0,2239.8,0.44658]
[1725681601890,0.82754,2240.0,2239.7,0.84038]
[1725681602086,0.44656,2239.9,2239.7,0.84038]
[1725681602293,0.82754,2240.0,2239.7,0.84038]
[1725681602597,0.82754,2240.0,2239.7,0.3938]
[1725681602791,0.82754,2240.0,2239.7,0.84039]
[1725681603991,1.29,2239.9,2239.7,0.84039]
[1725681604193,1.29,2239.9,2239.8,0.44658]
[1725681604489,0.82754,2240.0,2239.8,0.44658]
[1725681605287,0.381,2240.0,2239.8,0.44658]
[1725681605992,0.82754,2240.0,2239.8,0.44658]
[1725681606389,0.82754,2240.0,2239.7,0.84038]
[1725681608092,5.32843,2240.1,2239.7,0.3938]
[1725681608294,5.271,2240.1,2239.9,0.44655]
[1725681608487,5.71752,2240.1,2239.8,0.44656]
[1725681608892,4.94432,2240.1,2239.9,0.44655]
[1725681609090,4.94432,2240.1,2240.0,0.7404]
[1725681609686,0.44654,2240.0,2239.7,0.84038]
[1725681609886,1.23674,2240.0,2239.7,1.58078]
[1725681610097,1.23674,2240.0,2239.8,0.44657]
[1725681610800,1.23674,2240.0,2239.7,1.58078]
[1725681611294,1.23675,2240.0,2239.7,1.58078]
[1725681612387,1.23675,2240.0,2239.8,0.44657]
[1725681613105,0.7902,2240.0,2239.8,0.44657]
[1725681613304,1.73653,2240.1,2239.8,0.44657]
[1725681613597,1.73653,2240.1,2239.9,0.44655]
[1725681613990,1.73653,2240.1,2240.0,0.3609]
[1725681614301,0.3969,2240.2,2240.0,0.80744]
[1725681614492,0.3969,2240.2,2240.1,0.749]
[1725681614694,0.3855,2240.3,2240.1,0.749]
[1725681614912,0.3855,2240.3,2240.2,0.4465]
[1725681615796,1.6869,2240.4,2240.2,0.4465]
[1725681616009,2.13336,2240.4,2240.2,0.4465]
[1725681616304,2.13336,2240.4,2240.3,0.3802]
[1725681617214,3.9381,2240.6,2240.3,0.3802]
[1725681617401,0.44644,2240.5,2240.3,0.82667]
[1725681617906,0.3858,2240.4,2240.3,0.82667]
[1725681618716,0.3858,2240.4,2240.3,0.82668]
[1725681626413,1.14875963,2241.4,2241.3,0.44628]
[1725681626620,0.66413935,2241.7,2241.4,0.44625]
[1725681626945,7.2908514,2241.7,2241.3,0.44627]
[1725681627316,1.6857,2241.7,2241.2,0.7458]
[1725681627624,2.1319,2241.7,2241.4,0.44625]
[1725681628510,2.1319,2241.7,2241.2,0.7458]
[1725681628511,0.44622,2241.6,2241.2,1.19208]
[1725681629016,2.13191,2241.7,2241.3,0.44627]
[1725681629912,0.44622,2241.6,2241.3,0.44627]
[1725681630214,0.44622,2241.6,2241.3,0.44626]
[1725681630513,1.6857,2241.7,2241.4,0.44626]
[1725681631020,0.01640934,2241.6,2241.4,0.44626]
[1725681635224,2.1319,2241.7,2241.4,0.44626]
[1725681635521,0.01640915,2241.6,2241.4,0.44626]
[1725681635824,0.01640915,2241.6,2241.5,0.44624]
[1725681636324,0.01640915,2241.6,2241.4,0.44624]
[1725681636626,0.01640915,2241.6,2241.5,0.44624]
[1725681637018,4.4978,2241.8,2241.5,0.44624]
[1725681637317,0.01640875,2241.7,2241.6,0.3685]
[1725681637521,0.01640875,2241.7,2241.6,0.7298]
[1725681638413,4.94398,2241.8,2241.6,0.7298]
[1725681638610,4.94398,2241.8,2241.5,0.44624]
[1725681638611,0.46260867,2241.7,2241.5,0.44624]
[1725681638815,1.73619,2241.8,2241.5,0.44624]
[1725681639014,0.3972,2241.6,2241.5,0.44624]
[1725681640910,0.3972,2241.6,2241.4,0.44625]
[1725681641117,0.7671,2241.5,2241.4,0.44625]
[1725681647420,0.3972,2241.6,2241.5,0.44624]
[1725681661044,0.41360962,2241.6,2241.5,0.44624]
[1725681661360,0.41360962,2241.6,2240.9,1.11587]
[1725681661361,0.44635,2241.0,2240.8,0.44637]
[1725681661536,0.44634,2241.0,2240.8,0.44636]
[1725681661730,2.4057,2241.3,2240.6,3.65421]
[1725681661731,0.44638,2240.8,2240.6,3.65421]
[1725681661963,9.44333173,2240.9,2240.6,3.2078]
[1725681661964,7.01123173,2240.9,2240.6,3.2078]
[1725681662126,5.97653463,2240.7,2240.6,3.2078]
[1725681662332,1.05788896,2240.7,2240.6,3.2078]
[1725681662531,5.52109018,2240.7,2240.6,3.2078]
[1725681662873,10.23662496,2240.7,2240.2,3.2078]
[1725681662939,0.44648,2240.3,2240.2,3.2078]
[1725681663138,0.4628988,2240.3,2240.2,3.2078]
[1725681663738,0.46289934,2240.3,2240.2,3.2078]
[1725681663935,0.46289934,2240.3,2239.8,4.4978]
[1725681663936,0.44652,2240.1,2239.8,4.4978]
[1725681664140,0.4465,2240.2,2239.8,4.94436]
[1725681664841,5.16827976,2240.1,2239.8,4.94436]
[1725681665142,5.15185992,2240.1,2239.8,4.94436]
[1725681667940,5.15185992,2240.1,2239.9,0.44655]
[1725681668137,3.65429,2240.3,2239.9,0.44655]
[1725681668336,0.01641937,2240.2,2239.9,0.44655]
[1725681668737,0.46291937,2240.2,2239.8,4.94436]
[1725681668937,0.4465,2240.2,2239.8,4.94436]
[1725681669739,0.44652,2240.1,2239.8,4.4978]
[1725681669949,5.60022385,2240.1,2239.8,4.4978]
[1725681670138,0.44652,2240.1,2239.8,4.4978]
[1725681670941,0.44652,2240.1,2239.8,3.2078]
[1725681671541,1.6659,2240.2,2239.8,3.2078]
[1725681671847,5.22706784,2240.1,2239.8,3.2078]
[1725681672046,0.44654,2240.0,2239.8,3.2078]
[1725681672445,0.44656,2239.9,2239.8,3.2078]
[1725681672637,0.44658,2239.8,2239.4,0.44664]
[1725681672841,1.29,2239.7,2239.3,0.3642]
[1725681673042,0.44663,2239.6,2239.3,0.81087]
[1725681673654,6.04568112,2239.7,2239.3,0.81087]
[1725681673655,6.49229112,2239.7,2239.3,0.81087]
[1725681674057,5.20229112,2239.7,2239.4,0.44665]
[1725681674546,5.20229112,2239.7,2239.3,0.81086]
[1725681677051,0.44662,2239.6,2239.3,0.81086]
[1725681681548,5.57348112,2239.7,2239.4,0.44665]
[1725681682558,5.57348112,2239.7,2239.3,0.81086]
[1725681684664,5.57348112,2239.7,2239.3,0.3642]
[1725681685163,5.57348112,2239.7,2239.3,0.81086]
[1725681687165,0.44662,2239.6,2239.3,0.81086]
[1725681688376,5.57348112,2239.7,2239.4,0.44665]
[1725681690243,0.44662,2239.6,2239.3,0.81086]
[1725681693567,5.12688112,2239.7,2239.3,0.81086]
[1725681693975,0.44663,2239.6,2239.3,0.81086]
[1725681698379,0.44663,2239.6,2239.4,0.44665]
[1725681698685,0.44663,2239.6,2239.3,0.81086]
[1725681700981,0.44667,2239.3,2239.2,3.5897]
[1725681701481,1.57517,2239.3,2239.2,3.5897]
[1725681701688,1.80130817,2239.3,2239.2,3.5897]
[1725681701986,1.80130817,2239.3,2239.2,3.2078]
[1725681702186,1.80130817,2239.3,2239.0,0.44673]
[1725681702386,0.44669,2239.2,2239.0,0.44673]
[1725681703182,0.44672,2239.1,2238.8,0.3957]
[1725681703482,0.44672,2239.1,2238.8,0.84247]
[1725681706290,0.44672,2239.1,2238.9,0.44675]
[1725681706690,1.73671,2239.2,2238.9,0.44675]
[1725681707068,4.89063429,2239.1,2238.9,0.44675]
[1725681710519,5.33735429,2239.1,2238.8,0.84246]
[1725681711984,4.89063429,2239.1,2238.9,0.44675]
[1725681712682,4.89063429,2239.1,2239.0,0.44673]
[1725681712952,0.7561,2239.3,2239.1,0.4467]
[1725681713185,0.44666,2239.4,2239.2,0.7767]
[1725681713385,0.44667,2239.3,2239.2,0.7767]
[1725681713785,0.44666,2239.4,2239.2,0.7767]
[1725681714685,2.86455,2239.5,2239.2,1.22339]
[1725681714889,1.14875963,2239.6,2239.2,0.7767]
[1725681715091,1.14875963,2239.6,2239.4,0.44664]
[1725681718284,1.14875963,2239.6,2239.4,0.44665]
[1725681718690,4.9444,2239.7,2239.4,0.44665]
[1725681720795,4.9444,2239.7,2239.4,0.82415]
[1725681723606,0.44656,2239.9,2239.4,0.3775]
[1725681723792,1.73656,2239.9,2239.7,0.44659]
[1725681723998,6.4497647,2239.9,2239.8,0.3847]
[1725681724187,1.75298296,2239.9,2239.8,0.3847]
[1725681724596,0.44658,2239.8,2239.5,0.44662]
[1725681724794,0.4466,2239.7,2239.5,0.83132]
[1725681724997,0.7462,2239.6,2239.5,0.83132]
[1725681725184,1.1104,2239.6,2239.5,0.83132]
[1725681725588,1.55701,2239.6,2239.5,0.3847]
[1725681725990,1.1104,2239.6,2239.5,0.3847]
[1725681727696,1.55701,2239.6,2239.5,0.3847]
[1725681727889,1.1104,2239.6,2239.5,0.3847]
[1725681729099,1.1104,2239.6,2239.5,0.83133]
[1725681730001,1.1104,2239.6,2239.5,0.3847]
[1725681730204,0.3642,2239.6,2239.5,0.3847]
[1725681730592,0.3642,2239.6,2239.5,0.83133]
[1725681731695,0.3642,2239.6,2239.5,0.3847]
[1725681732186,0.3642,2239.6,2239.4,1.61037148]
[1725681732393,0.81082,2239.6,2239.4,1.61037148]
[1725681732894,0.81082,2239.6,2239.4,0.44664]
[1725681733092,0.81082,2239.6,2239.4,1.61037148]
[1725681733392,0.81082,2239.6,2239.4,0.44664]
[1725681733601,0.44664,2239.5,2239.3,5.19119148]
[1725681733795,5.31688913,2239.5,2239.3,4.81820148]
[1725681734002,0.7564,2239.4,2239.3,4.81820148]
[1725681734597,0.7564,2239.4,2239.3,5.20500148]
[1725681734999,0.7564,2239.4,2239.3,1.99720148]
[1725681735392,0.7564,2239.4,2239.3,1.55053148]
[1725681735600,15.61388779,2239.4,2239.1,1.16373148]
[1725681735812,0.44671,2239.1,2239.0,1.16373148]
[1725681736101,0.44672,2239.1,2238.8,1.98369148]
[1725681736298,1.1269,2239.0,2238.8,0.81996]
[1725681736903,1.1269,2239.0,2238.9,0.44675]
[1725681737809,1.57365,2239.0,2238.8,0.3732]
[1725681738298,1.1269,2239.0,2238.8,0.81997]
[1725681738565,1.1269,2239.0,2238.9,0.44675]
[1725681740915,1.7367,2239.2,2238.9,0.44675]
[1725681741304,4.83151177,2239.1,2239.0,0.3813]
[1725681741706,4.83151177,2239.1,2238.6,4.37153148]
[1725681741901,0.44673,2239.0,2238.6,4.37153148]
[1725681742103,0.44676,2238.9,2238.6,3.6546]
[1725681742404,1.55936,2238.9,2238.6,3.6546]
[1725681742912,1.1126,2238.9,2238.7,0.44679]
[1725681743109,0.362,2238.9,2238.8,0.44677]
[1725681743315,0.44671,2239.2,2238.9,0.44675]
[1725681743699,2.4091,2239.3,2238.8,0.44677]
[1725681743700,5.60793433,2239.1,2238.8,0.44677]
[1725681743818,5.60793433,2239.1,2238.9,0.3983]
[1725681744413,5.16121433,2239.1,2238.9,0.84505]
[1725681746413,5.16121433,2239.1,2238.9,1.21165]
[1725681747416,2.85579,2239.3,2239.0,0.44673]
[1725681748717,2.4091,2239.3,2239.0,0.44673]
[1725681750112,0.4467,2239.2,2239.0,0.44673]
[1725681750400,2.85578,2239.3,2239.0,0.44673]
[1725681750520,1.14875963,2240.0,2239.2,1.29]
[1725681750710,0.7536,2240.2,2240.0,0.44653]
[1725681750924,0.7536,2240.2,2239.9,0.44655]
[1725681751122,6.20840023,2240.2,2239.9,0.44655]
[1725681753020,7.05190023,2240.2,2239.8,0.44656]
[1725681753219,0.44654,2240.0,2239.7,1.20719]
[1725681753419,1.73654,2240.0,2239.8,0.44657]
[1725681753620,1.29,2240.0,2239.8,0.44657]
[1725681755326,1.29,2240.0,2239.9,0.44656]
[1725681756025,0.44653,2240.1,2239.9,0.44656]
[1725681756321,5.15335959,2240.0,2239.9,0.44656]
[1725681756723,0.44653,2240.1,2239.9,0.44656]
[1725681757627,0.44652,2240.1,2239.9,0.44656]
[1725681757929,0.44652,2240.1,2239.8,0.44656]
[1725681758128,0.44652,2240.1,2239.9,0.44655]
[1725681758321,0.44652,2240.1,2239.8,0.44656]
[1725681758637,0.44652,2240.1,2239.9,0.44655]
[1725681761923,0.44654,2240.0,2239.9,0.44655]
[1725681762230,5.5193368,2240.1,2239.9,0.44656]
[1725681762727,0.44658,2239.8,2239.7,0.3858]
[1725681762931,1.73659,2239.8,2239.5,0.3807]
[1725681763232,1.1255,2239.7,2239.6,0.44661]
[1725681766629,1.14875963,2240.3,2240.2,0.4465]
[1725681766823,4.94419,2240.8,2240.5,0.44643]
[1725681767024,4.94419,2240.8,2240.2,7.6718]
[1725681767025,0.01641692,2240.7,2240.6,0.44641]
[1725681767333,0.4464,2240.7,2240.5,0.44643]
[1725681767837,3.65419,2240.8,2240.5,0.44643]
[1725681768068,3.65419,2240.8,2240.3,0.3961]
[1725681768069,3.2078,2240.8,2240.6,0.44641]
[1725681768350,0.80667,2240.9,2240.6,0.44641]
[1725681768726,5.07436786,2240.8,2240.6,0.44641]
[1725681769019,0.80667,2240.9,2240.7,0.3621]
[1725681769332,0.44638,2240.8,2240.7,0.3621]
[1725681769532,0.80667,2240.9,2240.7,0.3621]
[1725681770734,0.44638,2240.8,2240.7,0.3621]
[1725681771032,0.80667,2240.9,2240.7,0.3621]
[1725681771735,0.44638,2240.8,2240.7,0.3621]
[1725681773527,0.44638,2240.8,2240.5,0.44643]
[1725681775633,0.44638,2240.8,2240.2,0.44649]
[1725681775634,0.44644,2240.5,2240.2,0.44649]
[1725681777247,0.44644,2240.5,2240.3,0.44648]
[1725681779339,3.65424,2240.5,2240.3,0.44648]
[1725681780036,0.44647,2240.4,2240.2,0.4465]
[1725681780331,0.44647,2240.4,2240.1,3.2078]
[1725681780332,0.4465,2240.2,2240.1,3.2078]
[1725681780526,0.44654,2240.0,2239.8,3.65436]
[1725681780727,0.82166,2239.9,2239.8,3.2078]
[1725681780948,0.82166,2239.9,2239.8,3.65438]
[1725681781135,0.3751,2239.9,2239.8,3.65438]
[1725681781435,3.2078,2240.3,2240.2,0.44648]
[1725681781739,3.65428,2240.3,2240.1,0.4465]
[1725681782429,0.01641909,2240.2,2240.1,0.4465]
[1725681783444,0.01641995,2240.2,2240.1,0.4465]
[1725681784737,0.01641996,2240.2,2240.1,0.4465]
[1725681784925,3.65428,2240.3,2240.1,0.4465]
[1725681786136,0.4465,2240.2,2240.1,0.4465]
[1725681786436,0.46291991,2240.2,2240.1,0.4465]
[1725681786833,0.46291991,2240.2,2240.0,0.81372]
[1725681787033,0.4465,2240.2,2240.0,0.81372]
[1725681787235,0.4465,2240.2,2240.1,0.44652]
[1725681787534,0.46292015,2240.2,2240.1,0.44652]
[1725681788140,0.44652,2240.1,2240.0,0.81373]
[1725681788336,3.9619,2240.3,2240.0,0.44652]
[1725681788636,0.46293022,2240.2,2240.0,0.44652]
[1725681788833,0.44651,2240.2,2240.0,0.44652]
[1725681789226,0.01642047,2240.1,2240.0,0.44652]
[1725681789535,3.9619,2240.3,2240.1,0.4465]
[1725681789536,4.02559,2240.3,2240.1,0.4465]
[1725681790642,0.4465,2240.2,2240.1,0.4465]
[1725681790831,4.02559,2240.3,2240.1,0.4465]
[1725681794446,0.81779,2240.3,2240.1,0.4465]
[1725681795333,4.02559,2240.3,2240.1,0.4465]
[1725681795942,4.02559,2240.3,2240.2,0.4465]
[1725681796238,4.02559,2240.3,2240.0,0.3621]
[1725681796239,0.3751,2240.4,2240.3,0.44648]
[1725681797441,0.3676,2240.7,2240.3,4.4632]
[1725681797637,3.2078,2240.8,2240.7,0.4464]
[1725681797840,3.22421717,2240.8,2240.7,0.4464]
[1725681798026,3.2078,2240.8,2240.7,0.4464]
[1725681798744,4.43127,2240.9,2240.7,0.4464]
[1725681800539,1.22347,2240.9,2240.7,0.44638]
[1725681800940,1.22347,2240.9,2240.8,0.7559]
[1725681801143,0.7771,2240.9,2240.8,1.20228]
[1725681801539,1.22346,2240.9,2240.8,0.7559]
[1725681801744,0.84056,2240.9,2240.8,0.7559]
[1725681802949,0.44639,2240.8,2240.6,0.4464]
[1725681805147,0.44639,2240.8,2240.7,0.4464]
[1725681805350,0.4628052,2240.8,2240.7,0.4464]
[1725681806557,0.0164152,2240.8,2240.7,0.4464]